bitfinex/quotes_BTCUSD_20260110
["timestamp","ask_amount","ask_price","bid_price","bid_amount"]
[1768059547087,0.0169169,90634.0,90631.0,0.06620246]
[1768059547640,0.04953402,90633.0,90631.0,0.06620246]
[1768059549173,0.0169169,90634.0,90631.0,0.06620246]
[1768059549382,0.0169169,90634.0,90632.0,0.04543877]
[1768059550582,0.0169169,90634.0,90633.0,0.10060631]
[1768059550781,0.0169169,90634.0,90633.0,0.04543877]
[1768059551011,0.0169169,90634.0,90633.0,0.10060631]
[1768059551668,0.0169169,90634.0,90633.0,0.04543877]
[1768059552242,0.0169169,90634.0,90633.0,0.0452855]
[1768059557171,0.0169169,90634.0,90631.0,0.01103375]
[1768059557619,0.0169169,90634.0,90631.0,0.06620238]
[1768059557834,0.04953402,90633.0,90631.0,0.06620238]
[1768059558488,0.04953402,90633.0,90631.0,0.01103375]
[1768059558663,0.04953402,90633.0,90631.0,0.06620198]
[1768059559066,0.0169169,90634.0,90632.0,0.05516815]
[1768059559270,0.0169169,90634.0,90631.0,0.05647252]
[1768059559472,0.0169169,90634.0,90633.0,0.04543877]
[1768059559919,0.0169169,90634.0,90633.0,0.10060631]
[1768059561297,0.0169169,90634.0,90633.0,0.10045304]
[1768059562897,0.00043329,90634.0,90633.0,0.100408]
[1768059567915,0.00034302,90634.0,90633.0,0.10025473]
[1768059568149,0.0001518,90643.0,90640.0,0.01103265]
[1768059568351,0.00022173,90643.0,90640.0,0.05631816]
[1768059568693,0.00022173,90643.0,90640.0,0.01087939]
[1768059568888,0.00022173,90643.0,90640.0,0.06604262]
[1768059569434,0.00022173,90643.0,90638.0,0.08619683]
[1768059569644,0.00022173,90643.0,90638.0,0.0310329]
[1768059569840,0.00022173,90643.0,90640.0,0.01103265]
[1768059572090,0.00022173,90643.0,90639.0,0.01103277]
[1768059572343,0.00022173,90643.0,90640.0,0.01103265]
[1768059572576,0.00022173,90643.0,90639.0,0.01103277]
[1768059573234,0.00022173,90643.0,90638.0,0.0310329]
[1768059573452,0.00022173,90643.0,90639.0,0.01103277]
[1768059574728,0.00022173,90643.0,90638.0,0.0310329]
[1768059575142,0.00022173,90643.0,90639.0,0.01103277]
[1768059575957,0.00022173,90643.0,90638.0,0.0310329]
[1768059576262,0.00022173,90643.0,90639.0,0.01103277]
[1768059576814,0.00022173,90643.0,90638.0,0.0310329]
[1768059577464,0.000999,90638.0,90635.0,0.05647203]
[1768059577642,0.00022173,90643.0,90636.0,0.01103314]
[1768059578722,0.00022173,90643.0,90635.0,0.08958623]
[1768059580901,0.00022173,90643.0,90636.0,0.01103314]
[1768059582009,0.00022173,90643.0,90635.0,0.08958623]
[1768059582210,0.00022173,90643.0,90636.0,0.01103314]
[1768059582859,0.00022173,90643.0,90637.0,0.01103302]
[1768059583529,0.00022173,90643.0,90636.0,0.01103314]
[1768059585033,0.00022173,90643.0,90635.0,0.08958623]
[1768059585828,0.00022173,90643.0,90636.0,0.01103314]
[1768059586176,0.00022173,90643.0,90635.0,0.08958623]
[1768059586854,0.00022173,90643.0,90636.0,0.01103314]
[1768059587447,0.00022173,90643.0,90635.0,0.08958623]
[1768059588061,0.00022173,90643.0,90636.0,0.01103314]
[1768059588758,0.00013145,90643.0,90637.0,0.01103302]
[1768059589170,0.00013145,90643.0,90636.0,0.01103314]
[1768059589326,0.00013145,90643.0,90637.0,0.01103302]
[1768059589510,0.00013145,90643.0,90636.0,0.01103314]
[1768059589711,0.00013145,90643.0,90637.0,0.01103302]
[1768059590156,0.00013145,90643.0,90636.0,0.01103314]
[1768059590358,0.00013145,90643.0,90637.0,0.01103302]
[1768059591276,0.00013145,90643.0,90638.0,0.0110329]
[1768059592145,0.00013145,90643.0,90637.0,0.01103302]
[1768059593218,0.00013145,90643.0,90639.0,0.01103277]
[1768059593219,9.096e-05,90643.0,90639.0,0.01103277]
[1768059593419,6.7e-07,90643.0,90638.0,0.0110329]
[1768059593624,0.04897813,90643.0,90638.0,0.0110329]
[1768059594026,0.04897813,90643.0,90639.0,0.01103277]
[1768059594199,0.04897813,90643.0,90638.0,0.0110329]
[1768059594586,0.04897813,90643.0,90637.0,0.01103302]
[1768059595371,0.04897813,90643.0,90634.0,0.01103338]
[1768059595583,0.04897813,90643.0,90636.0,0.01103314]
[1768059596922,0.04897813,90643.0,90637.0,0.01103302]
[1768059597877,0.04897813,90643.0,90635.0,0.01103326]
[1768059598322,0.04897813,90643.0,90636.0,0.01103314]
[1768059598527,0.04897813,90643.0,90637.0,0.01103302]
[1768059598663,0.04897813,90643.0,90636.0,0.01103314]
[1768059598867,0.04897813,90643.0,90637.0,0.01103302]
[1768059599069,0.04897813,90643.0,90638.0,0.0110329]
[1768059599569,0.04897813,90643.0,90637.0,0.01103302]
[1768059599769,0.04897813,90643.0,90636.0,0.01103314]
[1768059600979,0.04897813,90643.0,90639.0,0.01103277]
[1768059601184,0.04897813,90643.0,90640.0,0.01103265]
[1768059601403,0.04897813,90643.0,90639.0,0.01103277]
[1768059602374,0.04897813,90643.0,90638.0,0.0110329]
[1768059602572,0.04897813,90643.0,90639.0,0.01103277]
[1768059602769,0.04897813,90643.0,90638.0,0.0110329]
[1768059603431,0.04897813,90643.0,90637.0,0.01103302]
[1768059604520,0.04897813,90643.0,90635.0,0.01103326]
[1768059604723,0.04897813,90643.0,90634.0,0.05516668]
[1768059604724,0.04897813,90643.0,90634.0,0.01103338]
[1768059604924,0.04897813,90643.0,90638.0,0.0110329]
[1768059605110,0.04897813,90643.0,90637.0,0.01103302]
[1768059605307,0.04897813,90643.0,90636.0,0.01103314]
[1768059605610,0.04897813,90643.0,90637.0,0.01103302]
[1768059605812,0.04897813,90643.0,90638.0,0.0110329]
[1768059606223,6.7e-07,90643.0,90640.0,0.01103265]
[1768059606623,6.7e-07,90643.0,90640.0,0.06619565]
[1768059607421,6.7e-07,90643.0,90640.0,0.01103265]
[1768059608547,6.7e-07,90643.0,90640.0,0.06619546]
[1768059609154,6.7e-07,90643.0,90641.0,0.0551626]
[1768059609558,6.7e-07,90643.0,90640.0,0.01103265]
[1768059610231,6.7e-07,90643.0,90640.0,0.06619586]
[1768059610449,6.7e-07,90643.0,90640.0,0.01103265]
[1768059618008,6.7e-07,90643.0,90640.0,0.06619583]
[1768059618159,6.7e-07,90643.0,90642.0,0.05516206]
[1768059619335,6.7e-07,90643.0,90640.0,0.01103265]
[1768059619662,6.7e-07,90643.0,90642.0,0.05516206]
[1768059625062,6.7e-07,90643.0,90640.0,0.01103265]
[1768059625181,6.7e-07,90643.0,90642.0,0.05516206]
[1768059626993,6.7e-07,90643.0,90641.0,0.05516256]
[1768059627229,6.7e-07,90643.0,90642.0,0.05516206]
[1768059627430,6.7e-07,90643.0,90640.0,0.06619486]
[1768059628932,6.7e-07,90643.0,90641.0,0.0551626]
[1768059629127,6.7e-07,90643.0,90640.0,0.01103265]
[1768059629346,6.7e-07,90643.0,90640.0,0.06619577]
[1768059630161,6.7e-07,90643.0,90640.0,0.01103265]
[1768059634060,6.7e-07,90643.0,90640.0,0.06619571]
[1768059635097,6.7e-07,90643.0,90640.0,0.06619576]
[1768059635406,6.7e-07,90643.0,90640.0,0.01103265]
[1768059635785,6.7e-07,90643.0,90642.0,0.05516206]
[1768059636917,6.7e-07,90643.0,90641.0,0.05516262]
[1768059637652,6.7e-07,90643.0,90642.0,0.05516206]
[1768059639158,0.01938691,90648.0,90645.0,0.04601869]
[1768059639353,0.01934687,90648.0,90644.0,0.01103216]
[1768059640380,0.01934687,90648.0,90643.0,0.01103229]
[1768059640922,0.01934687,90648.0,90643.0,0.05705098]
[1768059641420,0.01934687,90648.0,90645.0,0.04601869]
[1768059641979,0.01934687,90648.0,90645.0,0.05705073]
[1768059645995,0.01934687,90648.0,90645.0,0.01103204]
[1768059646147,0.01934687,90648.0,90644.0,0.01103216]
[1768059646466,0.01934687,90648.0,90645.0,0.01103204]
[1768059648214,0.01934687,90648.0,90644.0,0.01103216]
[1768059648393,0.01934687,90648.0,90645.0,0.01103204]
[1768059649351,0.000999,90645.0,90641.0,0.01103253]
[1768059649816,0.01934687,90648.0,90641.0,0.01103253]
[1768059654477,0.01934687,90648.0,90640.0,0.01103265]
[1768059654688,0.01934687,90648.0,90641.0,0.01103253]
[1768059655131,0.01934687,90648.0,90640.0,0.01103265]
[1768059660576,0.01934687,90648.0,90639.0,0.01103277]
[1768059662831,0.01934687,90648.0,90640.0,0.01103265]
[1768059663033,0.01934687,90648.0,90639.0,0.01103277]
[1768059665081,0.01934687,90648.0,90638.0,0.0110329]
[1768059665293,0.01934687,90648.0,90639.0,0.01103277]
[1768059665647,0.01934687,90648.0,90640.0,0.01103265]
[1768059665871,0.01934687,90648.0,90639.0,0.01103277]
[1768059667598,0.01934687,90648.0,90638.0,0.0110329]
[1768059667792,0.01934687,90648.0,90639.0,0.01103277]
[1768059668526,0.01934687,90648.0,90638.0,0.0110329]
[1768059668859,0.01930613,90648.0,90639.0,0.01103277]
[1768059675487,0.0191655,90648.0,90639.0,0.01103277]
[1768059677474,0.0191655,90648.0,90637.0,0.01103302]
[1768059677640,0.0189991,90648.0,90636.0,0.01103314]
[1768059677841,0.01869205,90648.0,90635.0,0.01103326]
[1768059678044,0.02972373,90648.0,90634.0,0.07639894]
[1768059678830,0.01869205,90648.0,90634.0,0.07639894]
[1768059680375,0.01869205,90648.0,90638.0,0.0110329]
[1768059680518,0.01869205,90648.0,90637.0,0.05840696]
[1768059681084,0.01869205,90648.0,90639.0,0.01103277]
[1768059681344,0.01869205,90648.0,90627.0,0.02208]
[1768059681345,0.04815362,90647.0,90627.0,0.02208]
[1768059681549,0.06903417,90643.0,90629.0,0.02208]
[1768059681758,0.01103253,90641.0,90629.0,0.02208]
[1768059682386,0.01103253,90641.0,90629.0,0.04416]
[1768059683016,0.01103265,90640.0,90629.0,0.02208]
[1768059683286,0.01103253,90641.0,90629.0,0.02208]
[1768059683942,0.01103241,90642.0,90629.0,0.02208]
[1768059684109,0.00984826,90641.0,90629.0,0.02208]
[1768059684508,0.02088079,90641.0,90629.0,0.02208]
[1768059684712,0.00984826,90641.0,90629.0,0.03311241]
[1768059685521,0.02088079,90641.0,90629.0,0.03311241]
[1768059685730,0.0110329,90638.0,90629.0,0.01103241]
[1768059685953,0.01103302,90637.0,90629.0,0.03311241]
[1768059686154,0.0110329,90638.0,90629.0,0.03311241]
[1768059686351,0.01103265,90640.0,90629.0,0.03311241]
[1768059686606,0.01103277,90639.0,90629.0,0.03311241]
[1768059686837,0.01103265,90640.0,90629.0,0.03311241]
[1768059687363,0.01103277,90639.0,90629.0,0.03311241]
[1768059687570,0.01103265,90640.0,90629.0,0.03311241]
[1768059687964,0.00984826,90639.0,90629.0,0.03311241]
[1768059688476,0.02088103,90639.0,90629.0,0.03311241]
[1768059689136,0.0110329,90638.0,90629.0,0.03311241]
[1768059689289,0.02088103,90639.0,90629.0,0.03311241]
[1768059689690,0.00984826,90639.0,90629.0,0.03311241]
[1768059689890,0.0110329,90638.0,90629.0,0.03311241]
[1768059690094,0.02088103,90639.0,90629.0,0.03311241]
[1768059690679,0.00984826,90639.0,90629.0,0.03311241]
[1768059693568,0.02088103,90639.0,90629.0,0.03311241]
[1768059693998,0.00984826,90639.0,90629.0,0.03311241]
[1768059695370,0.02088103,90639.0,90629.0,0.03311241]
[1768059695953,0.00984826,90639.0,90629.0,0.03311241]
[1768059696812,0.02088103,90639.0,90629.0,0.07975853]
[1768059697856,0.0110329,90638.0,90629.0,0.07975853]
[1768059698054,0.02088103,90639.0,90629.0,0.07975853]
[1768059698329,0.00984826,90639.0,90629.0,0.07975853]
[1768059698877,0.02088103,90639.0,90629.0,0.07975853]
[1768059699070,0.00984826,90639.0,90629.0,0.07975853]
[1768059699273,0.00984826,90639.0,90630.0,0.04664612]
[1768059699474,0.00984826,90639.0,90632.0,0.01103363]
[1768059699676,0.00984826,90639.0,90631.0,0.01103375]
[1768059700106,0.00984826,90639.0,90630.0,0.05767999]
[1768059700301,0.00984826,90639.0,90631.0,0.01103375]
[1768059700506,0.00984826,90639.0,90630.0,0.05767999]
[1768059700710,0.00984826,90639.0,90631.0,0.01103375]
[1768059702091,0.00984826,90639.0,90630.0,0.05767999]
[1768059702323,0.00984826,90639.0,90630.0,0.04664612]
[1768059702624,0.01103216,90644.0,90630.0,0.04664612]
[1768059702820,0.01103216,90644.0,90630.0,0.05767999]
[1768059703505,0.00984826,90638.0,90629.0,0.03311241]
[1768059703825,0.00984826,90638.0,90629.0,0.02208]
[1768059704309,0.00984826,90638.0,90627.0,0.04664612]
[1768059704520,0.00984826,90638.0,90628.0,0.01103253]
[1768059704716,0.00984826,90638.0,90628.0,0.05767865]
[1768059706512,0.02088116,90638.0,90628.0,0.05767865]
[1768059706958,0.00984826,90638.0,90628.0,0.05767865]
[1768059709358,0.00984826,90638.0,90628.0,0.04664612]
[1768059717189,0.00980783,90638.0,90628.0,0.04664612]
[1768059718021,0.01103277,90639.0,90628.0,0.04664612]
[1768059718420,0.01103253,90641.0,90628.0,0.04664612]
[1768059718625,0.01103265,90640.0,90628.0,0.04664612]
[1768059718913,0.01103253,90641.0,90628.0,0.04664612]
[1768059719137,0.02084049,90640.0,90628.0,0.04664612]
[1768059719326,0.00980784,90640.0,90628.0,0.04664612]
[1768059720336,0.00980784,90640.0,90628.0,0.05768023]
[1768059721262,0.00980784,90640.0,90628.0,0.04664612]
[1768059721986,0.00976783,90640.0,90629.0,0.0488302]
[1768059722191,0.00967754,90640.0,90629.0,0.0488302]
[1768059722380,0.0096369,90640.0,90629.0,0.0488302]
[1768059722909,0.01103277,90639.0,90629.0,0.0488302]
[1768059723789,0.0096369,90640.0,90629.0,0.0488302]
[1768059724785,0.02066955,90640.0,90629.0,0.0488302]
[1768059725102,0.0096369,90640.0,90629.0,0.0488302]
[1768059727745,0.0096369,90640.0,90629.0,0.05986419]
[1768059727941,0.0096369,90640.0,90629.0,0.0488302]
[1768059728764,0.0096369,90640.0,90630.0,0.21938993]
[1768059731731,0.0096369,90640.0,90629.0,0.0488302]
[1768059731992,0.0096369,90640.0,90630.0,0.21938993]
[1768059732591,0.02066955,90640.0,90630.0,0.21938993]
[1768059732749,0.0096369,90640.0,90630.0,0.21938993]
[1768059734408,0.01103229,90643.0,90630.0,0.21938993]
[1768059734808,0.01103241,90642.0,90630.0,0.21938993]
[1768059735248,0.0096369,90641.0,90630.0,0.21938993]
[1768059735760,0.02066943,90641.0,90630.0,0.21938993]
[1768059736439,0.0096369,90641.0,90630.0,0.21938993]
[1768059736943,0.0110318,90647.0,90632.0,0.01103363]
[1768059737158,0.0187503,90648.0,90633.0,0.05688164]
[1768059737323,0.0187503,90648.0,90634.0,0.01103338]
[1768059737487,0.0187503,90648.0,90635.0,0.01103326]
[1768059738514,0.0187503,90648.0,90636.0,0.01103314]
[1768059738715,0.0187503,90648.0,90635.0,0.01103326]
[1768059738914,0.0187503,90648.0,90636.0,0.01103314]
[1768059739116,0.0187503,90648.0,90635.0,0.01103326]
[1768059739516,0.0187503,90648.0,90636.0,0.01103314]
[1768059739794,0.0187503,90648.0,90637.0,0.01103302]
[1768059740674,0.0187503,90648.0,90638.0,0.0110329]
[1768059740854,0.0187503,90648.0,90639.0,0.01103277]
[1768059741352,0.0187503,90648.0,90638.0,0.0110329]
[1768059742438,0.0187503,90648.0,90637.0,0.01103302]
[1768059742639,0.0187503,90648.0,90638.0,0.0110329]
[1768059743652,0.0187503,90648.0,90637.0,0.01103302]
[1768059744736,0.0187503,90648.0,90636.0,0.01103314]
[1768059744979,0.0187503,90648.0,90639.0,0.01103277]
[1768059746553,0.0187503,90648.0,90640.0,0.01103265]
[1768059746758,0.0187503,90648.0,90641.0,0.01103253]
[1768059746919,0.01866,90648.0,90640.0,0.01103265]
[1768059747861,0.01866,90648.0,90641.0,0.01103253]
[1768059748063,0.01866,90648.0,90640.0,0.01103265]
[1768059748416,0.01866,90648.0,90639.0,0.01103277]
[1768059748837,0.01866,90648.0,90641.0,0.01103253]
[1768059749459,0.01866,90648.0,90642.0,0.01103241]
[1768059750832,0.01866,90648.0,90639.0,0.01103277]
[1768059750833,0.01866,90648.0,90640.0,0.01103265]
[1768059751201,0.01866,90648.0,90638.0,0.05688104]
[1768059751400,0.01866,90648.0,90639.0,0.01103277]
[1768059752269,0.0185697,90648.0,90639.0,0.01103277]
[1768059752471,0.0185697,90648.0,90638.0,0.04584814]
[1768059753803,0.0185697,90648.0,90637.0,0.01103302]
[1768059754551,0.0185697,90648.0,90638.0,0.04879729]
[1768059755283,0.0185697,90648.0,90638.0,0.05983019]
[1768059755460,0.0185697,90648.0,90638.0,0.04879729]
[1768059755676,0.0185697,90648.0,90637.0,0.01103302]
[1768059756662,0.0185697,90648.0,90638.0,0.04879729]
[1768059757679,0.0185697,90648.0,90636.0,0.01103314]
[1768059758214,0.0185697,90648.0,90637.0,0.01103302]
[1768059758562,0.0185697,90648.0,90637.0,0.05983031]
[1768059758740,0.0185697,90648.0,90639.0,0.04879729]
[1768059759797,0.0185697,90648.0,90637.0,0.01103302]
[1768059760173,0.0185697,90648.0,90638.0,0.0110329]
[1768059760484,0.0185697,90648.0,90637.0,0.01103302]
[1768059760692,0.0185697,90648.0,90638.0,0.05983019]
[1768059763270,0.0185697,90648.0,90639.0,0.01103277]
[1768059764634,0.0185697,90648.0,90639.0,0.05983006]
[1768059765868,0.0185697,90648.0,90639.0,0.01103277]
[1768059766035,0.0185697,90648.0,90640.0,0.01103265]
[1768059766611,0.0185697,90648.0,90640.0,0.05982994]
[1768059767799,0.0185697,90648.0,90640.0,0.01103265]
[1768059768926,0.0185697,90648.0,90639.0,0.05983006]
[1768059769764,0.0185697,90648.0,90639.0,0.01103277]
[1768059770298,0.0185697,90648.0,90640.0,0.01103265]
[1768059770664,0.0185697,90648.0,90640.0,0.04879729]
[1768059771681,0.0185697,90648.0,90639.0,0.01103277]
[1768059772739,0.0185697,90648.0,90640.0,0.04560201]
[1768059775757,0.0185697,90648.0,90639.0,0.01103277]
[1768059776319,0.0185697,90648.0,90633.0,0.02208]
[1768059776565,0.0185697,90648.0,90634.0,0.05516643]
[1768059776790,0.0185697,90648.0,90636.0,0.04560201]
[1768059777868,0.0185697,90648.0,90635.0,0.03311326]
[1768059778659,0.06591988,90648.0,90635.0,0.03311326]
[1768059779008,0.06591988,90648.0,90636.0,0.01103314]
[1768059780547,0.06591988,90648.0,90635.0,0.03311326]
[1768059781476,0.06591988,90648.0,90635.0,0.02208]
[1768059781676,0.06591988,90648.0,90635.0,0.03311326]
[1768059782669,0.06591988,90648.0,90636.0,0.01103314]
[1768059782895,0.06591988,90648.0,90635.0,0.03311326]
[1768059783296,0.06591988,90648.0,90636.0,0.01103314]
[1768059783582,0.04805828,90644.0,90635.0,0.02208]
[1768059783788,0.04796797,90644.0,90635.0,0.02208]
[1768059784790,0.04805828,90643.0,90635.0,0.02208]
[1768059785647,0.04796797,90643.0,90635.0,0.02208]
[1768059786394,0.04796797,90643.0,90635.0,0.03311326]
[1768059786549,0.04796797,90643.0,90634.0,0.01103338]
[1768059786757,0.04796797,90643.0,90633.0,0.02208]
[1768059786960,0.04796797,90643.0,90634.0,0.03311296]
[1768059788183,0.02,90644.0,90634.0,0.03311296]
[1768059788410,0.02,90644.0,90634.0,0.04414634]
[1768059788835,0.02,90644.0,90635.0,0.01103326]
[1768059789210,0.02,90644.0,90634.0,0.04414634]
[1768059789415,0.06662798,90648.0,90644.0,0.00681838]
[1768059789416,0.0185697,90648.0,90644.0,0.00681838]
[1768059791748,0.0185697,90648.0,90641.0,0.01103253]
[1768059791925,0.0185697,90648.0,90640.0,0.03311265]
[1768059792239,0.0185697,90648.0,90641.0,0.01103253]
[1768059793189,0.0185697,90648.0,90640.0,0.03311265]
[1768059793383,0.0185697,90648.0,90642.0,0.01103241]
[1768059793600,0.0185697,90648.0,90641.0,0.01103253]
[1768059793800,0.0185697,90648.0,90642.0,0.01103241]
[1768059794708,0.0185697,90648.0,90641.0,0.01103253]
[1768059796474,0.0185697,90648.0,90640.0,0.03311265]
[1768059796662,0.0185697,90648.0,90641.0,0.01103253]
[1768059797314,0.0185697,90648.0,90640.0,0.03311265]
[1768059797495,0.0185697,90648.0,90640.0,0.02208]
[1768059797712,0.0185697,90648.0,90640.0,0.03311265]
[1768059798065,0.0185697,90648.0,90640.0,0.02208]
[1768059812555,0.0185697,90648.0,90640.0,0.03311265]
[1768059813017,0.0185697,90648.0,90640.0,0.02208]
[1768059813927,0.0185697,90648.0,90640.0,0.03311265]
[1768059814343,0.0185697,90648.0,90640.0,0.02208]
[1768059814714,0.0185697,90648.0,90640.0,0.03311265]
[1768059816053,0.0185697,90648.0,90640.0,0.02208]
[1768059818109,0.0185697,90648.0,90640.0,0.03311265]
[1768059818504,0.0185697,90648.0,90640.0,0.02208]
[1768059819009,0.0185697,90648.0,90640.0,0.03311265]
[1768059819186,0.0185697,90648.0,90640.0,0.02208]
[1768059830712,0.02960138,90648.0,90640.0,0.02208]
[1768059830910,0.01103192,90646.0,90638.0,0.04993203]
[1768059831132,0.01103204,90645.0,90632.0,0.04630657]
[1768059831487,0.0110318,90647.0,90633.0,0.05519165]
[1768059831614,0.01103192,90646.0,90633.0,0.05519165]
[1768059832126,0.01103204,90645.0,90632.0,0.04630657]
[1768059832333,0.01103192,90646.0,90634.0,0.0406497]
[1768059832655,0.01103192,90646.0,90634.0,0.02208]
[1768059833976,0.0110318,90647.0,90634.0,0.02208]
[1768059834202,0.0110318,90647.0,90634.0,0.06783729]
[1768059834401,0.02960138,90648.0,90634.0,0.06783729]
[1768059834741,0.02960138,90648.0,90634.0,0.07887067]
[1768059835341,0.0110318,90647.0,90634.0,0.06783729]
[1768059835693,0.02960138,90648.0,90634.0,0.06783729]
[1768059836101,0.02960138,90648.0,90634.0,0.07887067]
[1768059837339,0.0185697,90648.0,90634.0,0.07887067]
[1768059838562,0.0185697,90648.0,90635.0,0.01103326]
[1768059838865,0.0185697,90648.0,90634.0,0.07887067]
[1768059839290,0.0185697,90648.0,90635.0,0.04575729]
[1768059839771,0.0185697,90648.0,90635.0,0.05679055]
[1768059840170,0.02960138,90648.0,90635.0,0.04575729]
[1768059840395,0.02960138,90648.0,90635.0,0.05679055]
[1768059840396,0.0185697,90648.0,90635.0,0.05679055]
[1768059841130,0.0185697,90648.0,90635.0,0.04575729]
[1768059841337,0.0110318,90647.0,90635.0,0.04575729]
[1768059842004,0.02960138,90648.0,90635.0,0.04575729]
[1768059842390,0.0110318,90647.0,90635.0,0.04575729]
[1768059842957,0.02960138,90648.0,90635.0,0.04575729]
[1768059843364,0.01103192,90646.0,90635.0,0.04575729]
[1768059844015,0.0110318,90647.0,90635.0,0.04575729]
[1768059845541,0.0110318,90647.0,90635.0,0.04571212]
[1768059846923,0.02960138,90648.0,90635.0,0.04571212]
[1768059847549,0.0110318,90647.0,90635.0,0.04571212]
[1768059848956,0.02960138,90648.0,90635.0,0.04571212]
[1768059849682,0.0110318,90647.0,90635.0,0.04571212]
[1768059849874,0.02960138,90648.0,90635.0,0.04571212]
[1768059850305,0.0110318,90647.0,90635.0,0.04571212]
[1768059851237,0.02960138,90648.0,90635.0,0.04571212]
[1768059852567,0.0110318,90647.0,90635.0,0.04571212]
[1768059852769,0.02960138,90648.0,90635.0,0.04571212]
[1768059854436,0.0185697,90648.0,90635.0,0.04571212]
[1768059854828,0.0185697,90648.0,90635.0,0.05674538]
[1768059855025,0.02960138,90648.0,90635.0,0.04571212]
[1768059856036,0.0185697,90648.0,90635.0,0.04571212]
[1768059858083,0.0185697,90648.0,90635.0,0.05674538]
[1768059858295,0.0185697,90648.0,90635.0,0.04571212]
[1768059858673,0.0185697,90648.0,90635.0,0.05674538]
[1768059859855,0.0185697,90648.0,90637.0,0.01103302]
[1768059860329,0.0185697,90648.0,90635.0,0.05674538]
[1768059860894,0.0185697,90648.0,90636.0,0.01103314]
[1768059861096,0.0185697,90648.0,90635.0,0.05674538]
[1768059861320,0.0185697,90648.0,90636.0,0.01103314]
[1768059862801,0.0185697,90648.0,90635.0,0.05674538]
[1768059863370,0.0185697,90648.0,90636.0,0.01103314]
[1768059864361,0.0185697,90648.0,90635.0,0.05674538]
[1768059864964,0.0185697,90648.0,90636.0,0.01103314]
[1768059867631,0.0185697,90648.0,90637.0,0.01103302]
[1768059868064,0.0185697,90648.0,90636.0,0.01103314]
[1768059868460,0.0185697,90648.0,90636.0,0.01098798]
[1768059869318,0.0185697,90648.0,90637.0,0.01103302]
[1768059870392,0.0185697,90648.0,90636.0,0.01098798]
[1768059870643,0.0185697,90648.0,90637.0,0.01103302]
[1768059871596,0.0185697,90648.0,90636.0,0.01098798]
[1768059872481,0.0185697,90648.0,90637.0,0.01103302]
[1768059873316,0.0185697,90648.0,90636.0,0.01098798]
[1768059874020,0.0185697,90648.0,90637.0,0.01103302]
[1768059875217,0.0185697,90648.0,90636.0,0.05791215]
[1768059875412,0.0185697,90648.0,90638.0,0.04692417]
[1768059876669,0.0185697,90648.0,90637.0,0.01103302]
[1768059876886,0.0185697,90648.0,90638.0,0.0110329]
[1768059877201,0.0185697,90648.0,90637.0,0.01103302]
[1768059881303,0.0185697,90648.0,90636.0,0.01098798]
[1768059881519,0.0185697,90648.0,90636.0,0.01094282]
[1768059881861,0.0185697,90648.0,90637.0,0.01103302]
[1768059883647,0.0185697,90648.0,90638.0,0.0110329]
[1768059883849,0.0185697,90648.0,90637.0,0.01103302]
[1768059884035,0.0185697,90648.0,90638.0,0.0110329]
[1768059884441,0.0185697,90648.0,90637.0,0.02103302]
[1768059886361,0.0185697,90648.0,90638.0,0.0110329]
[1768059886685,0.0185697,90648.0,90637.0,0.02103302]
[1768059887178,0.0185697,90648.0,90638.0,0.0110329]
[1768059888769,0.0185697,90648.0,90637.0,0.02103302]
[1768059889412,0.0185697,90648.0,90637.0,0.01]
[1768059893415,0.0185697,90648.0,90637.0,0.02103302]
[1768059894504,0.0185697,90648.0,90637.0,0.01]
[1768059894690,0.0185697,90648.0,90637.0,0.02103302]
[1768059895491,0.0185697,90648.0,90638.0,0.0110329]
[1768059896920,0.0185697,90648.0,90637.0,0.02103302]
[1768059897169,0.0185697,90648.0,90638.0,0.0110329]
[1768059897372,0.0185697,90648.0,90637.0,0.01]
[1768059898043,0.0185697,90648.0,90637.0,0.02103302]
[1768059898249,0.0185697,90648.0,90637.0,0.01]
[1768059900249,0.0185697,90648.0,90637.0,0.02103302]
[1768059901349,0.0185697,90648.0,90637.0,0.01]
[1768059902836,0.02960138,90648.0,90637.0,0.01]
[1768059903398,0.02960138,90648.0,90637.0,0.03208]
[1768059903780,0.0185697,90648.0,90637.0,0.03208]
[1768059904760,0.02960138,90648.0,90637.0,0.03208]
[1768059905316,0.0185697,90648.0,90637.0,0.03208]
[1768059906793,0.0185697,90648.0,90637.0,0.04311302]
[1768059907012,0.0185697,90648.0,90637.0,0.03208]
[1768059909141,0.0185697,90648.0,90637.0,0.04311302]
[1768059910100,0.0185697,90648.0,90637.0,0.03208]
[1768059915369,0.02960138,90648.0,90637.0,0.03208]
[1768059915783,0.0185697,90648.0,90637.0,0.03208]
[1768059916162,0.02960138,90648.0,90637.0,0.03208]
[1768059917399,0.0110318,90647.0,90637.0,0.03208]
[1768059917605,0.01103192,90646.0,90637.0,0.03208]
[1768059917886,0.0110318,90647.0,90637.0,0.03208]
[1768059919117,0.02960138,90648.0,90637.0,0.03208]
[1768059920396,0.0185697,90648.0,90637.0,0.03208]
[1768059920558,0.02960138,90648.0,90637.0,0.03208]
[1768059923431,0.0185697,90648.0,90637.0,0.03208]
[1768059923676,0.02960138,90648.0,90637.0,0.03208]
[1768059926127,0.0185697,90648.0,90637.0,0.03208]
[1768059927892,0.02960138,90648.0,90637.0,0.03208]
[1768059928044,0.0185697,90648.0,90637.0,0.03208]
[1768059929489,0.0185697,90648.0,90640.0,0.04682321]
[1768059930660,0.0185697,90648.0,90640.0,0.05785586]
[1768059931511,0.0185697,90648.0,90642.0,0.04682321]
[1768059934010,0.0185697,90648.0,90638.0,0.0110329]
[1768059936153,0.0185697,90648.0,90639.0,0.01103277]
[1768059936406,0.0185697,90648.0,90640.0,0.01103265]
[1768059936838,0.0185697,90648.0,90639.0,0.01103277]
[1768059937049,0.0185697,90648.0,90638.0,0.0110329]
[1768059937234,0.0185697,90648.0,90637.0,0.04311302]
[1768059937432,0.0185697,90648.0,90637.0,0.03208]
[1768059937692,0.0185697,90648.0,90637.0,0.04311302]
[1768059937866,0.0185697,90648.0,90637.0,0.03208]
[1768059938515,0.02960138,90648.0,90637.0,0.03208]
[1768059938718,0.0110318,90647.0,90637.0,0.03208]
[1768059938921,0.02960138,90648.0,90637.0,0.03208]
[1768059939261,0.0110318,90647.0,90637.0,0.03208]
[1768059939671,0.01103192,90646.0,90637.0,0.03208]
[1768059941133,0.01103192,90646.0,90637.0,0.03203485]
[1768059941332,0.0110318,90647.0,90637.0,0.03203485]
[1768059941567,0.01103192,90646.0,90637.0,0.03203485]
[1768059943123,0.0110318,90647.0,90637.0,0.03203485]
[1768059944645,0.01103192,90646.0,90637.0,0.03203485]
[1768059945249,0.01103192,90646.0,90637.0,0.0319897]
[1768059946451,0.0110318,90647.0,90637.0,0.0319897]
[1768059949964,0.01103192,90646.0,90637.0,0.0319897]
[1768059952235,0.01103192,90646.0,90637.0,0.03194455]
[1768059952444,0.01103204,90645.0,90637.0,0.03194455]
[1768059953280,0.01103192,90646.0,90637.0,0.03194455]
[1768059954230,0.01103204,90645.0,90637.0,0.03194455]
[1768059956307,0.01103192,90646.0,90637.0,0.03194455]
[1768059956718,0.01103204,90645.0,90637.0,0.03194455]
[1768059959467,0.01103204,90645.0,90637.0,0.0318994]